Cogmind - Beta 9.4 @@@ ROGUE MODE // 2020.01.16 @ 05:39:03 // Winter2019/RPGLIKE Player: PyroDawn Result: Destroyed by Y-54 Guardian with Flak Gun Performance ------------- Evolutions (4) 2000 Regions Visited (14) 2800 Robots Destroyed (495) 2475 Value Destroyed (18675) 18675 Prototype IDs (220) 4400 Alien Tech Used (1) 200 Bonus (13967) 13967 TOTAL SCORE: 44517 Bonus ------- Triggered High Security 500 High Alert Combat Kills 10048 Follower Combat Kills 103 Aligned with FarCom 300 Met Data Miner 300 Used Data Conduit 3000 Pursued by Intercept 500 Friendly Fire -784 Cogmind --------- Core Integrity 0/1000 Matter 280/300 Energy 267/270 System Corruption 5% Temperature Cool (6) Movement Flying (29) Location -6/Factory Parts ------- > --- POWER (1) -------- Micro Fission Core > --- PROPULSION (4) --- Improved VTOL Module Improved VTOL Module Cooled VTOL Module Cooled VTOL Module > --- UTILITY (6) ------ Advanced Signal Interpreter Improved Maneuvering Thrusters Experimental Phase Shifter Experimental Thermal Shield Deep Network Scanner Ghost Barrier > --- WEAPON (4) ------- Precision Grenade Launcher Master Tearclaws Makeshift Spear > --- INVENTORY (3) ---- Protomatter-30 Improved Energy Well (600) Nanoactuators Peak State ------------ > --- POWER ------------ Micro Fission Core > --- PROPULSION ------- Improved VTOL Module Improved VTOL Module Cooled VTOL Module Cooled VTOL Module > --- UTILITY ---------- Advanced Signal Interpreter Improved Maneuvering Thrusters Experimental Phase Shifter Experimental Thermal Shield Deep Network Scanner Ghost Barrier > --- WEAPON ----------- Precision Grenade Launcher Master Tearclaws Makeshift Spear > --- INVENTORY -------- Protomatter Improved Energy Well Nanoactuators [Rating: 94] Favorites ----------- Power Light Nuclear Core Engine Light Angular Momentum Engine Power Core Light Nuclear Core Propulsion Improved VTOL Module Flight Unit Improved VTOL Module Utility Advanced Signal Interpreter Device Trap Reconfigurator Storage Improved Energy Well Processor Advanced Signal Interpreter Hackware Hacking Suite Protection Improved Medium Armor Plating Weapon Precision Grenade Launcher Energy Cannon Heavy Particle Cannon Ballistic Gun Assault Rifle Launcher Precision Grenade Launcher Special Weapon Mining Laser Impact Weapon Heavy Flail Slashing Weapon Katana Piercing Weapon Makeshift Spear Build | -11 -10 -10 -9 -9 -9 -8 -8 -8 -7 -7 -7 -7 -6 -6 ------- Run | Scr Mat Min Mat Min Exi Min Mat Sto Fac Low Low Dat Pro Fac Slots Evolved 10 | . 2 1 3 . 1 1 1 . 1 . . . . . Power . | . . . . . . . . . . . . . . . Propulsion 3 | . 1 . 1 . 1 . . . . . . . . . Utility 5 | . . 1 1 . . 1 1 . 1 . . . . . Weapon 2 | . 1 . 1 . . . . . . . . . . . Parts Attached 105 | 2 9 5 19 . 11 1 4 6 15 10 9 5 4 5 Power 15 | 1 1 1 6 . . . . 2 1 1 1 . 1 . Engine 6 | 1 . . 3 . . . . 2 . . . . . . Core 9 | . 1 1 3 . . . . . 1 1 1 . 1 . Reactor . | . . . . . . . . . . . . . . . Propulsion 27 | . 2 2 7 . 8 . 1 1 6 . . . . . Treads . | . . . . . . . . . . . . . . . Leg . | . . . . . . . . . . . . . . . Wheel . | . . . . . . . . . . . . . . . Hover . | . . . . . . . . . . . . . . . Flight 27 | . 2 2 7 . 8 . 1 1 6 . . . . . Utility 31 | . 2 1 2 . 3 1 1 . 2 5 2 5 3 4 Device 13 | . . . . . 2 . . . 1 3 1 2 1 3 Storage 2 | . . . . . . . . . . . . 1 1 . Processor 3 | . 1 1 . . 1 . . . . . . . . . Hackware 8 | . 1 . 2 . . 1 1 . . . 1 1 . 1 Protection 5 | . . . . . . . . . 1 2 . 1 1 . Artifact . | . . . . . . . . . . . . . . . Weapon 32 | 1 4 1 4 . . . 2 3 6 4 6 . . 1 Energy Gun . | . . . . . . . . . . . . . . . Energy Cannon 1 | . . . . . . . . . . 1 . . . . Ballistic Gun 4 | 1 1 1 . . . . . 1 . . . . . . Ballistic Cannon . | . . . . . . . . . . . . . . . Launcher 13 | . 1 . 2 . . . 2 . 4 . 3 . . 1 Special Weapon 3 | . 2 . . . . . . . . . 1 . . . Impact Weapon 1 | . . . . . . . . . 1 . . . . . Slashing Weapon 6 | . . . 2 . . . . 2 1 1 . . . . Piercing Weapon 4 | . . . . . . . . . . 2 2 . . . Special Melee Weapon . | . . . . . . . . . . . . . . . Unidentified Prototypes 13 | . . . 2 . 3 . 2 1 2 . 1 1 . 1 Parts Lost 4 | . . . . . . . . . 2 . . 2 . . Power . | . . . . . . . . . . . . . . . Propulsion . | . . . . . . . . . . . . . . . Utility 3 | . . . . . . . . . 1 . . 2 . . Weapon 1 | . . . . . . . . . 1 . . . . . Highest Loss Streak 2 | . . . . . . . . . 1 . . 2 . . Average Slot Usage (%) 96 | . 95 100 99 100 93 90 97 99 98 94 92 91 90 92 Engine 1 | . 9 . 1 . . . . . 3 . . . . . Core 6 | . 7 15 10 10 9 8 7 5 3 7 6 6 6 6 Flight 28 | . 31 31 29 30 25 25 29 30 28 28 26 26 26 26 Device 8 | . . . . . 3 8 7 7 9 9 20 20 17 20 Processor 11 | . 4 3 12 10 12 16 15 15 14 14 13 7 6 6 Hackware 12 | . 10 15 19 20 13 4 11 15 14 11 6 6 6 8 Ballistic Gun 1 | . 17 15 1 . . . . . . . . . . . Launcher 11 | . 3 15 12 20 19 16 15 15 13 6 4 6 6 5 Slashing Weapon 6 | . . . 10 10 9 8 7 6 7 6 6 6 6 6 Piercing Weapon 1 | . . . . . . . . . . 2 6 6 6 6 Naked Turns . | . . . . . . . . . . . . . . . Heaviest Build 37 | 5 11 12 12 12 13 13 20 24 31 34 30 37 36 34 Greatest Support 82 | 3 13 13 28 28 82 28 34 34 36 37 37 41 41 37 Greatest Overweight (x) 1 | 1 1 . 1 . . . . . . . . . . 1 Average Overweight (x) . | . . . . . . . . . . . . . . . Largest Inventory Capacity 3 | . 1 1 2 2 2 2 2 2 2 2 2 2 3 3 Average Capacity 1 | . . 1 1 2 2 2 2 2 2 2 2 2 2 3 Most Carried 3 | . 1 1 2 2 2 2 2 2 2 2 2 2 3 3 Average Carried 1 | . . 1 1 2 2 2 1 2 2 1 1 2 2 2 Final Capacity 3 | . 1 1 2 2 2 2 2 2 2 2 2 2 3 3 Final Carried 3 | . 1 1 2 2 2 2 2 2 2 2 2 2 2 3 Class Distribution -------------------- 58% | Hacker-Scout 22% | Hacker-Sprinter 8% | Hacker-Mutant 5% | Scavenger-Mutant 4% | Mutant Dominant Class ---------------- Mutant | -10/Materials Scavenger-Mutant | -10/Mines Hacker-Mutant | -9/Materials Hacker-Sprinter | -9/Mines Hacker-Sprinter | -9/Exiles Hacker-Scout | -8/Mines Hacker-Scout | -8/Materials Hacker-Scout | -8/Storage Hacker-Scout | -7/Factory Hacker-Scout | -7/Lower Caves Hacker-Scout | -7/Lower Caves Hacker-Sprinter | -7/Data Miner Hacker-Sprinter | -6/Proximity Caves Hacker-Sprinter | -6/Factory Resources | -11 -10 -10 -9 -9 -9 -8 -8 -8 -7 -7 -7 -7 -6 -6 ----------- Run | Scr Mat Min Mat Min Exi Min Mat Sto Fac Low Low Dat Pro Fac Matter Collected 4392 | 220 378 100 446 56 . 168 241 90 1267 601 188 68 485 84 Remotely . | . . . . . . . . . . . . . . . Salvage Created 17704 | . 446 106 2109 195 . 307 2185 1066 8007 376 648 364 1001 894 Parts 927 | . 39 15 145 24 . 19 95 78 349 26 39 19 49 30 Haulers Intercepted 23 | . 1 . 6 . . . 4 3 5 . . . 1 3 Recyclers Shooed 10 | . 3 . 1 . . . . . 6 . . . . . Parts Field Recycled . | . . . . . . . . . . . . . . . Retrieved Matter . | . . . . . . . . . . . . . . . Parts Self-Destructed 88 | . . . . . . . . . . 13 36 . 39 . Prevented . | . . . . . . . . . . . . . . . Kills | -11 -10 -10 -9 -9 -9 -8 -8 -8 -7 -7 -7 -7 -6 -6 ------- Run | Scr Mat Min Mat Min Exi Min Mat Sto Fac Low Low Dat Pro Fac Combat Hostiles Destroyed 383 | . 10 5 40 11 . 9 38 20 171 16 20 4 30 9 Melee 128 | . . . 12 . . 2 15 13 37 5 15 4 18 7 Guns 13 | . 10 2 1 . . . . . . . . . . . Cannons 1 | . . . . . . . . . . 1 . . . . AOE 221 | . . 3 26 11 . 7 21 4 120 10 5 . 12 2 Classes Destroyed 22 | . 7 1 2 1 . . 3 . 4 3 . . 1 . Worker 15 | . . . 4 . . 1 . . 10 . . . . . Builder 7 | . . . . 1 . . 1 1 4 . . . . . Tunneler 7 | . 1 . 1 . . 1 . . 4 . . . . . Hauler 23 | . 1 . 6 . . . 4 3 5 . . . 1 3 Recycler 9 | . . . . . . . 1 . 7 . . . . 1 Carrier 2 | . . . . . . . . . 2 . . . . . Minesweeper 1 | . . . . . . . . . . . . . 1 . Mechanic 15 | . 1 . . . . . . . 13 . . . . 1 Operator 8 | . 1 . 4 . . . . . 2 1 . . . . Drone 2 | . . . . . . . . . 2 . . . . . Watcher 22 | . 3 . 4 . . . 5 2 7 . . . . 1 Swarmer 60 | . 3 3 8 8 . 3 2 4 10 6 7 . 3 3 Grunt 156 | . 7 . 24 3 . 6 24 5 69 2 4 . 12 . Brawler 12 | . . . . . . . 1 . 6 1 2 . 2 . Duelist 16 | . . . . . . . . . 11 . 2 . 3 . Protector 15 | . . . 1 . . . . . 14 . . . . . Sentry 50 | . . 2 7 . . . 10 11 11 . 3 . 3 3 Hunter 40 | . . . . . . . 1 . 36 . . . 3 . Programmer 16 | . . . . . . . . . 13 . 2 . . 1 Behemoth 1 | . . . . . . . . . . 1 . . . . Enhanced Grunt 4 | . . . . . . . . . . . . 4 . . Tracker 1 | . . . . . . . . . . . . . . 1 Combat Programmer 1 | . . . . . . . . . . . . . . 1 Master Thief 6 | . . . . . . . . . . 2 . . 4 . Thug 1 | . . . . . . . . . . 1 . . . . Savage 1 | . . . . . . . . . . . 1 . . . Fireman 3 | . . . . . . . . . . 3 . . . . Best Kill Streak 39 | . 4 3 7 5 . 8 15 6 39 3 9 2 7 4 Combat Bots Only 38 | . 2 3 5 4 . 6 13 9 38 3 9 2 7 4 Max Kills in Single Turn 19 | . 1 2 4 5 . 2 3 2 19 2 2 1 3 2 Gunslinging . | . . . . . . . . . . . . . . . Exploded 14 | . . 2 4 4 . 2 3 1 14 2 2 . 3 2 Melee 1 | . . . 1 . . 1 1 1 1 1 1 1 1 1 Uniques/NPCs Destroyed 1 | . . . . . . . . . . . . 1 . . Data Miner (-7/Data Miner) Combat | -11 -10 -10 -9 -9 -9 -8 -8 -8 -7 -7 -7 -7 -6 -6 -------- Run | Scr Mat Min Mat Min Exi Min Mat Sto Fac Low Low Dat Pro Fac Damage Taken 11752 | . 453 123 975 37 . 78 1096 266 4087 568 223 1197 1174 1475 Core 9392 | . 382 97 817 28 . 70 902 213 3253 395 187 931 922 1195 Absorbed by Shields . | . . . . . . . . . . . . . . . Redirected to Core 7087 | . 228 72 501 28 . 27 643 165 2461 299 129 826 727 981 Core Remaining (%) 99 | 100 . 100 . . . 100 . 100 . . . . 95 . Volleys Fired 451 | . 96 14 62 4 . 7 47 8 138 40 5 . 27 3 Largest 2 | . 2 1 2 2 . 2 1 1 2 1 1 . 1 1 Hottest 120 | . 120 33 58 63 . 63 36 36 72 75 36 . 36 36 Shots Fired 469 | . 97 14 64 8 . 9 47 8 141 42 6 1 29 3 Gun 114 | . 96 6 12 . . . . . . . . . . . Cannon 9 | . . . . . . . . . . 9 . . . . Launcher 345 | . . 8 52 8 . 9 47 8 141 33 6 1 29 3 Special 1 | . 1 . . . . . . . . . . . . . Kinetic 114 | . 96 6 12 . . . . . . . . . . . Thermal 10 | . 1 . . . . . . . . 9 . . . . Explosive 121 | . . . . 4 . 2 . . 43 33 6 1 29 3 Electromagnetic 224 | . . 8 52 4 . 7 47 8 98 . . . . . Robot Hit Streak 28 | . 10 5 10 5 . 5 5 3 28 20 23 3 8 11 Robot Miss Streak 9 | . 9 3 4 1 . 1 3 2 4 1 1 . 1 . Penetration Max . | . . . . . . . . . . . . . . . Secondary Targets . | . . . . . . . . . . . . . . . Shots Hit Robots 823 | . 61 8 91 6 . 9 87 39 255 75 52 35 69 36 Core Hits 828 | . 30 7 74 15 . 17 71 26 410 44 33 15 62 24 Critical Hits 12 | . . . 1 . . . 1 . 6 . 1 . 2 1 Critical Kills 3 | . . . 1 . . . 1 . 1 . . . . . Critical Parts Destroyed 8 | . . . . . . . . . 5 . 1 . 2 . Melee Attacks 571 | . . . 73 . . 5 73 38 159 47 54 34 54 34 Impact . | . . . . . . . . . . . . . . . Slashing 433 | . . . 73 . . 5 73 38 159 40 26 11 7 1 Piercing 138 | . . . . . . . . . . 7 28 23 47 33 Sneak Attacks 42 | . . . 7 . . . 5 9 5 1 3 1 6 5 Combat Hostiles 11 | . . . . . . . 2 5 1 1 2 . . . Follow-up Attacks 14 | . . . . . . . . . . 3 4 5 2 . Damage Inflicted 56430 | . 912 226 4818 671 . 796 5081 2465 28549 3391 1675 1042 4772 2032 Guns 1090 | . 912 41 137 . . . . . . . . . . . Cannons 100 | . . . . . . . . . . 100 . . . . Explosions 34911 | . . 185 2222 671 . 684 2513 666 22606 2371 490 24 2192 287 Melee 20329 | . . . 2459 . . 112 2568 1799 5943 920 1185 1018 2580 1745 Ramming . | . . . . . . . . . . . . . . . Kinetic 1090 | . 912 41 137 . . . . . . . . . . . Thermal 6963 | . . . 269 116 . 232 454 27 5765 100 . . . . Explosive 12991 | . . . . 390 . 194 . . 7043 2371 490 24 2192 287 Electromagnetic 15057 | . . 185 1953 165 . 258 2059 639 9798 . . . . . Impact . | . . . . . . . . . . . . . . . Slashing 13455 | . . . 2459 . . 112 2568 1799 5943 410 90 45 29 . Piercing 6874 | . . . . . . . . . . 510 1095 973 2551 1745 Highest Corruption 8 | . . . . . . . . . 8 8 8 8 8 5 Average Corruption 7 | . . . . . . . . . 5 8 8 8 8 3 Corruption Purged . | . . . . . . . . . . . . . . . Effects 130 | . . . . . . . . . 37 35 20 8 29 1 Message Errors 17 | . . . . . . . . . 5 6 4 . 2 . Matter Fused 32 | . . . . . . . . . 8 9 1 2 12 . Heat Flow Errors 11 | . . . . . . . . . 4 2 2 1 2 . Energy Discharges 16 | . . . . . . . . . 7 5 3 . 1 . Parts Rejected 3 | . . . . . . . . . 2 . . . . 1 Data Loss (minor) 11 | . . . . . . . . . 1 2 4 . 4 . Data Loss (major) 4 | . . . . . . . . . . 2 2 . . . Misfires 7 | . . . . . . . . . 1 2 1 1 2 . Targeting Errors 28 | . . . . . . . . . 8 7 3 4 6 . Weapon Failures 1 | . . . . . . . . . 1 . . . . . Overload Shots . | . . . . . . . . . . . . . . . Overflow Damage 2366 | . . . 111 21 . 21 173 259 1168 317 3 . 183 110 Projectiles . | . . . . . . . . . . . . . . . Explosions 1204 | . . . 54 21 . 21 33 40 810 126 . . 99 . Melee 1162 | . . . 57 . . . 140 219 358 191 3 . 84 110 Knockbacks . | . . . . . . . . . . . . . . . Impact . | . . . . . . . . . . . . . . . Kinetic . | . . . . . . . . . . . . . . . Secondary . | . . . . . . . . . . . . . . . Self-Inflicted Damage 373 | . . 13 15 . . 9 70 . 111 32 41 42 40 . Shots 21 | . . 3 3 . . 1 3 . 4 2 2 1 2 . Rammed . | . . . . . . . . . . . . . . . Targets Rammed . | . . . . . . . . . . . . . . . Kicked . | . . . . . . . . . . . . . . . Crushed . | . . . . . . . . . . . . . . . Highest Temperature 297 | . 30 4 47 54 . 68 47 15 297 297 251 98 201 28 Average Temperature 48 | . 10 3 12 22 . 25 13 6 63 74 115 25 34 9 Received Heat Transfer 3356 | . 186 . 435 15 . 27 468 117 1248 254 9 222 258 117 Effects 1 | . . . . . . . . . . . 1 . . . Energy Bleed 1 | . . . . . . . . . . . 1 . . . Siege Activations . | . . . . . . . . . . . . . . . Robots Corrupted 22 | . . . 1 . . . 2 3 16 . . . . . Combat Hostiles 20 | . . . 1 . . . 2 3 14 . . . . . Parts Fried 57 | . . . 3 . . . 9 1 44 . . . . . Impact Corruptions . | . . . . . . . . . . . . . . . Robots Melted . | . . . . . . . . . . . . . . . Combat Hostiles . | . . . . . . . . . . . . . . . Parts Melted 8 | . . . . . . . . 1 3 . 1 . 2 1 Heat Transferred 6710 | . . . 487 150 . 300 650 50 4925 148 . . . . Parts Sabotaged . | . . . . . . . . . . . . . . . Parts Stolen 1 | . . . . . . . . . . 1 . . . . Parts Stripped . | . . . . . . . . . . . . . . . Power Chain Reactions 50 | . . . 10 1 . . 10 2 27 . . . . . Missiles Intercepted . | . . . . . . . . . . . . . . . Alert | -11 -10 -10 -9 -9 -9 -8 -8 -8 -7 -7 -7 -7 -6 -6 ------- Run | Scr Mat Min Mat Min Exi Min Mat Sto Fac Low Low Dat Pro Fac Peak Influence 5612 | . 345 225 611 523 . 308 911 1076 5612 . . . . 651 Average Influence 994 | . 187 145 303 380 . 223 576 737 2373 . . . . 448 Maximum Alert Level 5 | . 1 1 2 2 . 1 3 3 5 . . . . 2 Low Security (%) 18 | 100 63 88 31 . . 27 5 . . . . . . . Level 1 20 | . 36 11 36 54 . 72 13 6 . . . . . 51 Level 2 24 | . . . 32 45 . . 51 31 14 . . . . 48 Level 3 14 | . . . . . . . 29 62 13 . . . . . Level 4 4 | . . . . . . . . . 14 . . . . . Level 5 1 | . . . . . . . . . 4 . . . . . High Security 16 | . . . . . . . . . 53 . . . . . Max Security . | . . . . . . . . . . . . . . . Squads Dispatched 58 | . 1 . 8 . . . 7 1 39 . . . . 2 Investigation 13 | . . . 4 . . . 6 1 2 . . . . . Extermination . | . . . . . . . . . . . . . . . Reinforcement 9 | . 1 . 3 . . . 1 . 4 . . . . . Assault 34 | . . . 1 . . . . . 33 . . . . . Garrison . | . . . . . . . . . . . . . . . Intercept 2 | . . . . . . . . . . . . . . 2 Construction Impeded 2 | . . . . . . . 1 . 1 . . . . . Haulers Reinforced 3 | . . . . . . . . . 3 . . . . . Stealth | -11 -10 -10 -9 -9 -9 -8 -8 -8 -7 -7 -7 -7 -6 -6 --------- Run | Scr Mat Min Mat Min Exi Min Mat Sto Fac Low Low Dat Pro Fac Distress Signals 10 | . 1 . 4 . . . 3 . 1 . . . . 1 Communications Jammed . | . . . . . . . . . . . . . . . Distress Signals . | . . . . . . . . . . . . . . . Times Spotted 522 | . 21 5 60 7 . 8 51 27 259 18 16 4 29 17 Peak Tracking Total 25 | . 4 3 5 4 . 3 4 5 25 4 7 4 6 6 Tactical Retreats 31 | . 2 . 4 . . 1 5 1 15 1 1 . . 1 Traps | -11 -10 -10 -9 -9 -9 -8 -8 -8 -7 -7 -7 -7 -6 -6 ------- Run | Scr Mat Min Mat Min Exi Min Mat Sto Fac Low Low Dat Pro Fac Traps Triggered 14 | . 1 . 2 . . . 2 1 6 . . . 1 1 Indirectly 9 | . . . 1 . . . 2 1 5 . . . . . Trap Hack Attempts . | . . . . . . . . . . . . . . . Triggered . | . . . . . . . . . . . . . . . Disarmed . | . . . . . . . . . . . . . . . Reprogrammed 4 | . . . 4 . . . . . . . . . . . Reused 12 | . . . . . . . . 3 9 . . . . . Traps Reconfigurated 65 | . . . . . . . 11 14 40 . . . . . Traps Extracted . | . . . . . . . . . . . . . . . Installed 4 | . . . . . . . . . . . . . 4 . Triggered 16 | . . . . . . . . 3 9 1 . . 3 . Machines | -11 -10 -10 -9 -9 -9 -8 -8 -8 -7 -7 -7 -7 -6 -6 ---------- Run | Scr Mat Min Mat Min Exi Min Mat Sto Fac Low Low Dat Pro Fac Machines Disabled 49 | . 1 3 5 2 . 2 3 2 30 . . . . 1 Max in Single Turn 11 | . 1 1 1 2 . 2 2 1 11 . . . . 1 Garrison Access 3 | . . . . . . . 1 1 1 . . . . . Machines Sabotaged . | . . . . . . . . . . . . . . . Garrisons Compromised . | . . . . . . . . . . . . . . . Overloaded Fab Kills . | . . . . . . . . . . . . . . . Fab Network Shutdowns 1 | . . . . . . . . . 1 . . . . . Hacking | -11 -10 -10 -9 -9 -9 -8 -8 -8 -7 -7 -7 -7 -6 -6 --------- Run | Scr Mat Min Mat Min Exi Min Mat Sto Fac Low Low Dat Pro Fac Machines Accessed 79 | . 10 1 11 . 4 1 16 13 9 . 3 4 . 7 Terminals 40 | . 7 . 7 . . 1 11 8 3 . . . . 3 Fabricators 2 | . . . . . . . . . 2 . . . . . Repair Stations 8 | . 1 . . . . . 1 2 2 . . . . 2 Recycling Units 11 | . 2 . 2 . . . 2 2 1 . . . . 2 Scanalyzers 3 | . . . 2 . . . 1 . . . . . . . Garrison Access 3 | . . . . . . . 1 1 1 . . . . . Total Hacks 428 | . 40 1 67 . 48 8 90 72 35 . 8 27 . 32 Successful 356 | . 32 1 57 . 48 8 67 61 22 . 8 27 . 25 Failed 71 | . 8 . 10 . . . 22 11 13 . . . . 7 Catastrophic 3 | . . . 1 . . . . . 2 . . . . . Database Lockouts 1 | . . . . . . . 1 . . . . . . . Manual 253 | . 28 . 46 . 1 8 75 50 24 . . . . 21 Terminals 239 | . 26 . 40 . . 8 76 53 14 . . . . 22 Fabricators 9 | . . . . . . . . . 9 . . . . . Repair Stations 12 | . 2 . . . . . 1 4 2 . . . . 3 Recycling Units 62 | . 12 . 13 . . . 10 13 7 . . . . 7 Scanalyzers 15 | . . . 14 . . . 1 . . . . . . . Garrison Access 7 | . . . . . . . 2 2 3 . . . . . Terminal Hacks 152 | . 5 1 14 . 48 3 21 18 2 . 8 27 . 5 Record 65 | . . . . . 48 . . . . . 6 11 . . Part Schematic 22 | . . . . . . 3 2 7 1 . . 6 . 3 Robot Schematic 7 | . . . . . . . . . . . . 7 . . Prototype ID Bank 16 | . 2 . 2 . . . 5 3 1 . . 3 . . Open Door 4 | . . 1 . . . . . 1 . . 2 . . . Level Access Points 4 | . . . 1 . . . 1 2 . . . . . . Branch Access Points 4 | . . . 1 . . . 2 1 . . . . . . Machine Index 3 | . . . 1 . . . 1 1 . . . . . . Terminal Index 2 | . . . 1 . . . . 1 . . . . . . Alert Level 4 | . . . 1 . . . 2 1 . . . . . . Unreport Threat 6 | . . . 3 . . . 3 . . . . . . . Locate Traps 3 | . . . 1 . . . 1 . . . . . . 1 Reprogram Traps 1 | . . . 1 . . . . . . . . . . . Hauler Manifests 4 | . 1 . 1 . . . 1 . . . . . . 1 Registered Components 3 | . 1 . 1 . . . 1 . . . . . . . Registered Prototypes 3 | . 1 . . . . . 1 1 . . . . . . Zone Layout 1 | . . . . . . . 1 . . . . . . . Fabricator Hacks 2 | . . . . . . . . . 2 . . . . . Load Schematic 1 | . . . . . . . . . 1 . . . . . Build 1 | . . . . . . . . . 1 . . . . . Repair Station Hacks 6 | . 2 . . . . . . 2 . . . . . 2 Scan Component 3 | . 1 . . . . . . 1 . . . . . 1 Repair 3 | . 1 . . . . . . 1 . . . . . 1 Recycling Unit Hacks 18 | . 4 . 3 . . . 3 4 2 . . . . 2 Report Inventory 8 | . 2 . 1 . . . 1 2 . . . . . 2 Retrieve Components 10 | . 2 . 2 . . . 2 2 2 . . . . . Scanalyzer 11 | . . . 11 . . . . . . . . . . . Insert Component 5 | . . . 5 . . . . . . . . . . . Analyze 6 | . . . 6 . . . . . . . . . . . Garrison Access Hacks 3 | . . . . . . . 1 1 1 . . . . . Seal Access 3 | . . . . . . . 1 1 1 . . . . . Unauthorized Hacks 350 | . 46 . 59 . . 10 92 74 34 . . . . 35 Terminals 109 | . 14 . 17 . . 5 34 25 4 . . . . 10 Track 28 | . 5 . 5 . . 1 9 5 1 . . . . 2 Assimilate 16 | . 1 . . . . 1 6 4 2 . . . . 2 Botnet 34 | . 5 . 6 . . 1 11 8 1 . . . . 2 Disrupt 18 | . 1 . 4 . . 1 5 5 . . . . . 2 Operators 13 | . 2 . 2 . . 1 3 3 . . . . . 2 Fabricators 6 | . . . . . . . . . 6 . . . . . Report 1 | . . . . . . . . . 1 . . . . . Prioritize 2 | . . . . . . . . . 2 . . . . . Siphon 2 | . . . . . . . . . 2 . . . . . Haulers 1 | . . . . . . . . . 1 . . . . . Repair Stations 6 | . . . . . . . 1 2 2 . . . . 1 Mechanics 6 | . . . . . . . 1 2 2 . . . . 1 Recycling Units 39 | . 7 . 9 . . . 6 9 3 . . . . 5 Monitor 8 | . 2 . 2 . . . 1 2 . . . . . 1 Reject 11 | . 2 . 2 . . . 2 2 1 . . . . 2 Recyclers 8 | . 1 . 2 . . . 1 2 1 . . . . 1 Mask 9 | . 2 . 2 . . . 1 2 1 . . . . 1 Tunnel 3 | . . . 1 . . . 1 1 . . . . . . Scanalyzers 4 | . . . 3 . . . 1 . . . . . . . Researchers 1 | . . . 1 . . . . . . . . . . . Extract 3 | . . . 2 . . . 1 . . . . . . . Garrison Access . | . . . . . . . . . . . . . . . Data Cores Recovered . | . . . . . . . . . . . . . . . Used . | . . . . . . . . . . . . . . . Hacking Detections 42 | . 9 . 6 . . . 8 8 6 . . . . 5 Full Trace Events 6 | . 2 . 1 . . . 1 . 2 . . . . . Feedback Events . | . . . . . . . . . . . . . . . Feedback Blocked . | . . . . . . . . . . . . . . . Robot Schematics Acquired 7 | . . . . . . . . . . . . 7 . . Robots Built . | . . . . . . . . . . . . . . . Matter . | . . . . . . . . . . . . . . . Time . | . . . . . . . . . . . . . . . Total Robot Build Rating . | . . . . . . . . . . . . . . . Part Schematics Acquired 38 | . . . 12 . . 3 6 7 1 . . 6 . 3 Parts Built 1 | . . . . . . . . . 1 . . . . . Matter 109 | . . . . . . . . . 109 . . . . . Time 36 | . . . . . . . . . 36 . . . . . Total Part Build Rating 3 | . . . . . . . . . 3 . . . . . Parts Repaired 3 | . 1 . . . . . . 1 . . . . . 1 Time 111 | . 26 . . . . . . 50 . . . . . 35 Parts Recycled . | . . . . . . . . . . . . . . . Recycled Matter . | . . . . . . . . . . . . . . . Retrieved Matter . | . . . . . . . . . . . . . . . Retrieved Components 75 | . 19 . 11 . . . 12 20 13 . . . . . Parts Scanalyzed 5 | . . . 5 . . . . . . . . . . . Part Schematics Acquired 5 | . . . 5 . . . . . . . . . . . Parts Damaged 1 | . . . 1 . . . . . . . . . . . Bothacking | -11 -10 -10 -9 -9 -9 -8 -8 -8 -7 -7 -7 -7 -6 -6 ------------ Run | Scr Mat Min Mat Min Exi Min Mat Sto Fac Low Low Dat Pro Fac Used RIF Installer . | . . . . . . . . . . . . . . . Robots Hacked . | . . . . . . . . . . . . . . . Non-combat . | . . . . . . . . . . . . . . . Combat . | . . . . . . . . . . . . . . . Robot Hacks Applied . | . . . . . . . . . . . . . . . Relay Couplers Released . | . . . . . . . . . . . . . . . Robots Rewired . | . . . . . . . . . . . . . . . Allies Hacked . | . . . . . . . . . . . . . . . Hacks Repelled . | . . . . . . . . . . . . . . . Allies | -11 -10 -10 -9 -9 -9 -8 -8 -8 -7 -7 -7 -7 -6 -6 -------- Run | Scr Mat Min Mat Min Exi Min Mat Sto Fac Low Low Dat Pro Fac Total Allies 10 | . 1 . . . . . 3 3 2 . . . . 1 Largest Group 6 | . 1 1 1 . . . 3 6 6 4 4 4 . . Highest-Rated Group 165 | . 10 10 10 . . . 46 165 165 71 71 71 . . Highest-Rated Ally 99 | . 10 10 10 . . . 26 99 99 26 26 26 . . Total Orders 70 | . . 2 4 . . . 12 18 26 5 2 1 . . GOTO 42 | . . 1 2 . . . 6 10 18 3 1 1 . . FOLLOW 28 | . . 1 2 . . . 6 8 8 2 1 . . . Ally Attacks 4 | . . . . . . . . 4 . . . . . . Total Damage 100 | . . . . . . . . 100 . . . . . . Kills 3 | . . . . . . . . 3 . . . . . . Allies Corrupted 2 | . . . . . . . . . . . . . . 2 Allies Melted . | . . . . . . . . . . . . . . . Intel | -11 -10 -10 -9 -9 -9 -8 -8 -8 -7 -7 -7 -7 -6 -6 ------- Run | Scr Mat Min Mat Min Exi Min Mat Sto Fac Low Low Dat Pro Fac Robot Analysis Total 115 | . . . . . . . . . . . . 115 . . Derelict Logs Recovered 7 | . . 2 . 1 . . . . . 1 1 . 2 . Drone Launches 6 | . . . . . . . . 2 . . . . . 4 Drone Recoveries . | . . . . . . . . . . . . . . . Exploration | -11 -10 -10 -9 -9 -9 -8 -8 -8 -7 -7 -7 -7 -6 -6 ------------- Run | Scr Mat Min Mat Min Exi Min Mat Sto Fac Low Low Dat Pro Fac Turns Passed 9352 | 26 650 262 1373 242 229 247 920 661 2010 934 619 157 736 286 Spaces Moved 20091 | 27 968 548 2684 779 677 717 1961 1458 3589 2298 1585 238 1948 614 Core 93 | 27 32 . . . 20 . . . . . . . . 14 Treads . | . . . . . . . . . . . . . . . Legs . | . . . . . . . . . . . . . . . Wheels . | . . . . . . . . . . . . . . . Hover . | . . . . . . . . . . . . . . . Flight 19998 | . 936 548 2684 779 657 717 1961 1458 3589 2298 1585 238 1948 600 Fastest Speed 20 | 50 37 37 29 29 29 29 26 26 20 20 26 20 20 26 Average Speed 28 | 87 38 37 32 29 30 29 26 26 25 25 26 25 25 29 Slowest Speed 120 | 100 100 37 120 29 50 29 29 29 29 26 26 29 26 105 Overloaded Moves 91 | . . . . . . . . . 10 36 . 34 11 . Propulsion Burnouts . | . . . . . . . . . . . . . . . Robots Hopped 142 | . 11 4 25 4 . 8 23 21 35 . 3 . 4 4 Cave-ins Triggered 2 | . . . . . . . . . . . . . 1 1 Exploration Rate (%) 83 | 4 99 97 100 99 93 99 97 98 69 97 99 81 98 18 Regions Visited 14 Branch Regions 9 Pre-discovered Areas 27 | . . . 1 1 1 . 1 1 . 1 1 20 . . Known Exits Taken 12 | . . 1 1 1 1 1 1 1 1 1 1 1 1 . Unknown Exits Taken 2 | 1 1 . . . . . . . . . . . . . Scrap Searched 17 | . . 1 . 2 . 1 . . . 5 4 . 4 . Spaces Dug 6 | . . . 1 . . . . . 1 . 3 . 1 . Terrain Destroyed 1023 | . . . 25 45 . 56 51 26 323 162 40 6 246 43 Melee 6 | . . . 1 . . . . . 1 . 3 . 1 . Projectile . | . . . . . . . . . . . . . . . AOE 1017 | . . . 24 45 . 56 51 26 322 162 37 6 245 43 Actions | -11 -10 -10 -9 -9 -9 -8 -8 -8 -7 -7 -7 -7 -6 -6 --------- Run | Scr Mat Min Mat Min Exi Min Mat Sto Fac Low Low Dat Pro Fac Total 22462 | 28 1134 589 3011 782 698 730 2185 1648 4248 2530 1753 314 2123 689 Wait 757 | . 55 12 91 3 . 2 58 134 220 76 58 15 14 19 Move 19806 | 26 947 539 2635 770 676 700 1915 1416 3523 2297 1579 237 1940 606 Hop 129 | . 9 4 23 4 . 8 22 20 30 . 2 . 3 4 Pick Up 48 | . 2 . 19 . . . 4 . 1 4 11 2 2 3 Fast Attach 80 | 2 9 2 11 . 11 1 4 6 15 7 3 5 2 2 Attach 7 | . . . 4 . . . . . . . 2 . 1 . Detach 6 | . . . 3 . . . . . . 1 . 1 1 . Swap 19 | . . 3 4 . . . . . . 3 5 . 1 3 Drop 106 | . 3 4 27 . 11 . 6 5 11 13 13 6 4 3 Fire 451 | . 96 14 62 4 . 7 47 8 138 40 5 . 27 3 Melee 553 | . . . 73 . . 5 73 38 159 44 48 29 51 33 Ram . | . . . . . . . . . . . . . . . Kick . | . . . . . . . . . . . . . . . Crush . | . . . . . . . . . . . . . . . Escape Stasis . | . . . . . . . . . . . . . . . Rewire . | . . . . . . . . . . . . . . . Trap 4 | . . . . . . . . . . . . . 4 . Miscellaneous 496 | . 13 11 59 1 . 7 56 21 151 45 27 19 73 13 Route ------- -11/Scrapyard -10/Materials (discovered 5 exits: *Mat x3 / *Min x2) -10/Mines (discovered 2 exits: *Mat x2) -9/Materials (discovered 4 exits: *Mat x3 / *Min) -9/Mines (discovered 3 exits: *Mat x2 / *Exi) -9/Exiles (discovered 2 exits: *Min x2) -8/Mines (discovered 2 exits: *Mat x2) -8/Materials (discovered 4 exits: *Fac x3 / *Sto) -8/Storage (discovered 2 exits: *Fac / *Rec) -7/Factory (discovered 4 exits: *Fac x2 / *Low x2) -7/Lower Caves (discovered 2 exits: *Low / *Zio) -7/Lower Caves (discovered 2 exits: *Fac / *Dat) -7/Data Miner -6/Proximity Caves -6/Factory History --------- Turn | Location | Event 6 | -11/Scrapyard | Discovered new exit (range 16) 27 | -11/Scrapyard | Entered Materials 91 | -10/Materials | Upgraded with Propulsion slot (x1) 170 | -10/Materials | Discovered new exit (range 13) 174 | -10/Materials | Upgraded with Weapon slot (x1) 245 | -10/Materials | Discovered new exit (range 16) 301 | -10/Materials | Build established: Mutant 307 | -10/Materials | Discovered new exit (range 10) 384 | -10/Materials | Discovered new exit (range 12) 487 | -10/Materials | Repaired Flight Unit 556 | -10/Materials | Discovered new exit (range 4) 673 | -10/Materials | Build established: Scavenger-Mutant 677 | -10/Materials | Entered Mines 677 | -10/Mines | Accompanied by 1 ally 679 | -10/Mines | Reached level 2 695 | -10/Mines | Learned Materials emergency access door positions 796 | -10/Mines | Discovered new exit (range 11) 821 | -10/Mines | Discovered new exit (range 12) 849 | -10/Mines | Learned 2 Materials zone layouts 875 | -10/Mines | Met a Derelict who couldn't figure out how to use a Trap Extractor 876 | -10/Mines | Upgraded with Utility slot (x1) 933 | -10/Mines | Identified exit to Materials 939 | -10/Mines | Entered Materials 939 | -9/Materials | Accompanied by 1 ally 940 | -9/Materials | Identified exit to Materials 941 | -9/Materials | Reached level 3 944 | -9/Materials | Identified exit to Mines 1153 | -9/Materials | Reached level 4 1248 | -9/Materials | Build established: Hacker-Mutant 1406 | -9/Materials | Reached level 5 1507 | -9/Materials | Upgraded with Utility slot (x1) 1734 | -9/Materials | Upgraded with Propulsion slot (x1) 1815 | -9/Materials | Reached level 6 2003 | -9/Materials | Build established: Hacker-Sprinter 2069 | -9/Materials | Reached level 7 2139 | -9/Materials | First assault squad dispatched 2256 | -9/Materials | Upgraded with Weapon slot (x1) 2312 | -9/Materials | Entered Mines 2314 | -9/Mines | Reached level 8 2339 | -9/Mines | Discovered exit to Materials (range 8) 2359 | -9/Mines | Identified exit to Exiles 2390 | -9/Mines | Received a Rocket Launcher from a helpful Derelict 2416 | -9/Mines | Deemed a non-threat by the Exiles lab entrance 2436 | -9/Mines | Learned location of Storage (-8) 2485 | -9/Mines | Discovered exit to Materials (range 8) 2554 | -9/Mines | Entered Exiles 2558 | -9/Exiles | Discovered new exit (range 15) 2562 | -9/Exiles | Identified exit to Mines 2568 | -9/Exiles | Met 8R-AWN 2573 | -9/Exiles | Met EX-HEX 2591 | -9/Exiles | Met EX-DEC 2598 | -9/Exiles | Visited The Gauntlet 2633 | -9/Exiles | Learned location of Zion (-6) 2643 | -9/Exiles | Discovered exit to Mines (range 12) 2669 | -9/Exiles | Met EX-BIN 2690 | -9/Exiles | Aligned with FarCom system 2691 | -9/Exiles | Given EX-Vault access code 2697 | -9/Exiles | Opened EX-Vault 2700 | -9/Exiles | Upgraded with Propulsion slot (x1) 2700 | -9/Exiles | Found Prototype Flight Unit 2700 | -9/Exiles | Identified Flying Fortress v7 2709 | -9/Exiles | Found Prototype Device 2709 | -9/Exiles | Identified Trap Reconfigurator 2713 | -9/Exiles | Found Prototype Processor 2713 | -9/Exiles | Identified Modified TNC 2736 | -9/Exiles | Warned to stay clear of 0b10 Research branches 2783 | -9/Exiles | Stole two prototypes: Trap Reconfigurator, Modified TNC 2783 | -9/Exiles | Entered Mines 2785 | -8/Mines | Reached level 9 2884 | -8/Mines | Upgraded with Utility slot (x1) 2917 | -8/Mines | Discovered exit to Materials (range 4) 2956 | -8/Mines | Discovered exit to Materials (range 7) 2958 | -8/Mines | Reached level 10 3000 | -8/Mines | Build established: Hacker-Scout 3030 | -8/Mines | Entered Materials 3032 | -8/Materials | Reached level 11 3184 | -8/Materials | Destroyed 13 combat bots 3266 | -8/Materials | Reached level 12 3325 | -8/Materials | Destroyed 7 combat bots 3416 | -8/Materials | Discovered new exit (range 12) 3424 | -8/Materials | Identified exit to Storage 3439 | -8/Materials | Upgraded with Utility slot (x1) 3749 | -8/Materials | Discovered new exit (range 11) 3751 | -8/Materials | Identified exit to Factory 3824 | -8/Materials | Central database locked down 3833 | -8/Materials | Reached level 13 3950 | -8/Materials | Entered Storage 3950 | -8/Storage | Accompanied by 3 allies 3965 | -8/Storage | Identified exit to Recycling 4227 | -8/Storage | Destroyed 9 combat bots 4327 | -8/Storage | Reached level 14 4337 | -8/Storage | Met 01-MTF 4438 | -8/Storage | Used back door to open Recycling access 4578 | -8/Storage | Repaired Lgt. Angular Momentum Engine 4611 | -8/Storage | Entered Factory 4611 | -7/Factory | Accompanied by 8 allies 4613 | -7/Factory | FarCom data flow suspended 4616 | -7/Factory | 01-MTF left 4694 | -7/Factory | Reached level 15 4845 | -7/Factory | Discovered new exit (range 15) 4851 | -7/Factory | Identified exit to Factory 5191 | -7/Factory | Reached level 16 5238 | -7/Factory | Discovered exit to Factory (range 16) 5411 | -7/Factory | Fabricated Maneuvering Thrusters (x1) 5411 | -7/Factory | First assault squad dispatched 5522 | -7/Factory | Discovered new exit (range 10) 5524 | -7/Factory | Identified exit to Lower Caves 5539 | -7/Factory | Upgraded with Utility slot (x1) 5551 | -7/Factory | High security lockdown imminent 5618 | -7/Factory | Destroyed 10 combat bots 5631 | -7/Factory | High security lockdown engaged 5650 | -7/Factory | Discovered exit to Lower Caves (range 16) 5663 | -7/Factory | Reached level 17 5898 | -7/Factory | Destroyed 25 combat bots 5909 | -7/Factory | Local fabrication network quarantined 5991 | -7/Factory | Destroyed 10 combat bots 6023 | -7/Factory | Destroyed 7 combat bots 6032 | -7/Factory | Reached level 18 6053 | -7/Factory | Core integrity fell below 50% 6088 | -7/Factory | Destroyed 12 combat bots 6448 | -7/Factory | Destroyed 38 combat bots 6489 | -7/Factory | Core integrity fell below 20% 6502 | -7/Factory | Found Rocket Array 6506 | -7/Factory | Destroyed 11 combat bots 6566 | -7/Factory | Destroyed 14 combat bots 6580 | -7/Factory | Reached level 19 6621 | -7/Factory | Entered Lower Caves 6621 | -7/Lower Caves | Accompanied by 5 allies 6661 | -7/Lower Caves | A Derelict revealed a hidden shortcut to a safe place 6668 | -7/Lower Caves | Identified exit to Zion 6779 | -7/Lower Caves | Spotted N6-9ZK(f) 6779 | -7/Lower Caves | Spotted CH-CV8(f) 6782 | -7/Lower Caves | Encountered a Master Thief 6782 | -7/Lower Caves | Encountered a Master Thief 6793 | -7/Lower Caves | Destroyed CH-CV8(f) 6872 | -7/Lower Caves | Destroyed N6-9ZK(f) 6902 | -7/Lower Caves | Discovered new exit (range 7) 6903 | -7/Lower Caves | Identified exit to Lower Caves 6921 | -7/Lower Caves | Ambushed by wild Derelicts 7052 | -7/Lower Caves | Spotted B-75 Beast 7329 | -7/Lower Caves | Destroyed B-75 Beast 7443 | -7/Lower Caves | Spotted OL-PBQ(f) 7444 | -7/Lower Caves | Encountered a Master Thief 7450 | -7/Lower Caves | Trap Reconfigurator stolen by Master Thief 7555 | -7/Lower Caves | Entered another Lower Caves area 7555 | -7/Lower Caves | Accompanied by 4 allies 7558 | -7/Lower Caves | Learned Factory emergency access door positions 7562 | -7/Lower Caves | Discovered exit to Factory (range 13) 7576 | -7/Lower Caves | Found Alien Artifact 7696 | -7/Lower Caves | Identified Core Expander 7696 | -7/Lower Caves | Installed Core Expander, added new Weapon slot 7776 | -7/Lower Caves | Destroyed 9 combat bots 7926 | -7/Lower Caves | Encountered a Warlord checkpoint 8020 | -7/Lower Caves | Discovered new exit (range 2) 8021 | -7/Lower Caves | Identified exit to Data Miner 8142 | -7/Lower Caves | Learned location of Extension (-4) 8142 | -7/Lower Caves | Learned 8 Research zone layouts 8142 | -7/Lower Caves | Learned Armory trap positions 8142 | -7/Lower Caves | Learned Research emergency access door positions 8142 | -7/Lower Caves | Learned Armory security intel 8174 | -7/Lower Caves | Entered Data Miner 8174 | -7/Data Miner | Accompanied by 4 allies 8174 | -7/Data Miner | Discovered new exit (range 6) 8176 | -7/Data Miner | Identified exit to Proximity Caves 8179 | -7/Data Miner | Met Data Miner 8186 | -7/Data Miner | Learned location of Section 7 (-2) 8186 | -7/Data Miner | Acquired the access code to Warlord's prototype stash 8191 | -7/Data Miner | Received God Mode back door access code from Data Miner 8199 | -7/Data Miner | Destroyed Data Miner 8200 | -7/Data Miner | Interfaced with the Data Conduit 8201 | -7/Data Miner | Found Prototype Hackware 8203 | -7/Data Miner | Found Prototype Hackware 8203 | -7/Data Miner | Identified Deep Network Scanner 8217 | -7/Data Miner | Found Exp. Thermal Shield 8305 | -7/Data Miner | Found Exp. Thermal Shield 8331 | -7/Data Miner | Entered Proximity Caves 8428 | -6/Proximity Caves | Found Imp. Powered Armor 8460 | -6/Proximity Caves | Spotted MZ-I2B(f) 8461 | -6/Proximity Caves | Encountered a Master Thief 8471 | -6/Proximity Caves | Spotted WQ-ZBX(f) 8481 | -6/Proximity Caves | Encountered a Master Thief 8493 | -6/Proximity Caves | Destroyed MZ-I2B(f) 8504 | -6/Proximity Caves | Destroyed WQ-ZBX(f) 8509 | -6/Proximity Caves | Build established: Hacker-Sprinter 8529 | -6/Proximity Caves | Crushed by falling debris 8531 | -6/Proximity Caves | Spotted 3K-H4Y(f) 8531 | -6/Proximity Caves | Destroyed 3K-H4Y(f) 8621 | -6/Proximity Caves | Attracted the attention of an 0b10 outpost 8624 | -6/Proximity Caves | Reached level 20 8693 | -6/Proximity Caves | Destroyed 7 combat bots 8769 | -6/Proximity Caves | Discovered exit to Factory (range 14) 8774 | -6/Proximity Caves | Learned Factory terminal intel 8799 | -6/Proximity Caves | Spotted 9V-JP6(f) 8801 | -6/Proximity Caves | Encountered a Master Thief 8902 | -6/Proximity Caves | Attracted the attention of an 0b10 checkpoint 8941 | -6/Proximity Caves | Destroyed 9V-JP6(f) 9067 | -6/Proximity Caves | Entered Factory 9069 | -6/Factory | Loaded intel: 260 machine locations 9070 | -6/Factory | Loaded intel: 19 terminal locations 9128 | -6/Factory | Repaired Prc. Grenade Launcher 9251 | -6/Factory | Intercept squad dispatched 9267 | -6/Factory | Identified Ghost Barrier 9273 | -6/Factory | Spotted Tracker 9282 | -6/Factory | Destroyed Tracker 9285 | -6/Factory | Crushed by falling debris 9285 | -6/Factory | Core integrity fell below 50% 9310 | -6/Factory | Found Exp. Phase Shifter 9316 | -6/Factory | Spotted Combat Programmer 9335 | -6/Factory | Core integrity fell below 20% 9351 | -6/Factory | Destroyed Combat Programmer 9353 | -6/Factory | Destroyed by Y-54 Guardian with Flak Gun Last Messages --------------- 09324_ G-50 Soldier destroyed. 09326_ Penetrated by EMDS Slug. 09326_ G-67 Veteran suffers critical hit. 09328_ Penetrated by EMDS Slug. 09328_ G-67 Veteran suffers critical hit. 09328_ G-67 Veteran destroyed. 09330_ Penetrated by EMDS Slug. 09333_ K-01 Serf collects debris. 09334_ Penetrated by EMDS Slug. 09334_ K-01 Serf destroyed. 09338_ Penetrated by EMDS Slug. 09345_ Drone destroyed. 09346_ System corrupted: Imp. Maneuvering Thrusters rejected. 09347_ Acquired Imp. Maneuvering Thrusters. 09348_ Penetrated by EMDS Slug. 09351_ Combat Programmer fries systems beyond repair. 09351_ Combat Programmer destroyed. [Achievement: 40k Club] [Achievement: Rambo] [Achievement: Overachiever] Map ----- +----------------------------------------------------+ | ##+####### #u##=#############+##+## | | " # ???????###+### #[!#### # """" | | " ###???????????? T ##=##??# # | | " #??????????? ?#!#???# """"""""" + """" | | #?????????# ?#[#???# # | | ?????????# ?#*#???# """"""""" # """" | | #?????????# ?#k#???# # | | #####?????????# """ ?#%#???#################### | | ??????????????# """ ?#=#??????????????????????? | | ??????????????# """ ?#!#??????????????????????? | | ??????????????# *??? ??#%#??????????????????????? | | ??????????????####???#??#%#??????????????????????? | | ????????????????????????#=#??????????????????????? | | ????????????????????????#*#??????????????????????? | | ????????????????????????# #??????????????????????? | | ????????????????????????# #??????????????????????? | | ????????????????????????# #??????????????????????? | | ????????????????????????# #??????????????????????? | | ??????????+?????????????# #??????????????????????? | | ????????????????????????# #??????????????????????? | | ????????????????????????# #??????????????????????? | | ??????????+?????????????# #?????????????"""G"""??? | | ????????????????????????# #### #####????"""?"""??? | | ?????????"""?"""????????# # #?????????????? | | ?????????"""?"""????????# + #??????""""???? | | ?????????"""?"""????????#@# #??????""""???? | | ????????????????????????#%# """ #??????""""???? | | ?????????"""?"""???????? #?""" #??????""""?s?s | | ?????????"""?"""??????? #?"S #??????""""?s?? | | ?????????"""?"""?????? #?""" #??????""""?s?? | | ?????+???????????????? k/??"" !]#?????????????? | | ????????????????????? Y #????? !]???????""""???? | | ????????????????????# #??+???##???????""""???? | | ????????????????????# #???????????????""""???? | | ???????????????????? R ???????????????""""???? | | ???????????????????# ???????????????""""???? | | ??????????????????? T ???????????????""""???? | | ?????????????????? "" ???"""""??????????????? | | ??????????????????? ???"""""??????k""""???? | | ??????????????????## ? k ???"""?????????""""???? | | ????????????????????? ?u ???????????????""""???? | | ??????????????????????? ###???????????????""""???? | | ??????????????????????????????????????????""""???? | | ??????????????????????????????????????????""""???? | | ??????????????????????????k??????"""?????????????? | | ???u?R???????????????????????????"""??????""""???? | | ????????????????????????"""""????"""??????""""???? | | ???????????????????????k"""""?????????????""""???? | | ????????????????????????"""??????"""??????""""???? | | ????????????k????????????????????"""??????""""???? | +----------------------------------------------------+ Best States ------------- Heat Dissipation 31 Energy Generation 33 Energy Capacity 870 Matter Stores 300 Matter Capacity 300 Sight Range 17 Robot Scan Range 30 Terrain Scan Density 10 Armor Coverage 400 Resistance: KI 20 Resistance: TH 30 Resistance: EX 20 Melee Speed Boost 30 Phase Shifting 20 Evasion (%) 80 Targeting Accuracy 5 Offensive Hacking 35 Defensive Hacking 30 Item Schematics ----------------- Imp. Flight Unit | -9/Materials | Scanalyzed Katana | -9/Materials | Scanalyzed EMP Blaster | -9/Materials | Scanalyzed Hacking Suite | -9/Materials | Scanalyzed Lgt. Nuclear Core | -9/Materials | Scanalyzed Mace | -9/Materials | Extracted Lgt. Treads | -9/Materials | Extracted Weapon Shielding | -9/Materials | Extracted Hvy. EM Pulse Gun | -9/Materials | Extracted Welding Torch | -9/Materials | Extracted Com. Wheel | -9/Materials | Extracted Med. Laser | -9/Materials | Extracted System Shield | -8/Mines | Hacked Adv. Signal Interpreter | -8/Mines | Hacked Adv. Sensor Array | -8/Mines | Hacked Maneuvering Thrusters | -8/Materials | Hacked Armor Integrity Analyzer | -8/Materials | Hacked Flak Cannon | -8/Materials | Extracted Imp. Light Cannon | -8/Materials | Extracted Arm. Wheel | -8/Materials | Extracted Imp. Datajack | -8/Materials | Extracted Ion Cannon | -8/Storage | Hacked Dynamic Insulation System | -8/Storage | Hacked Shock Rifle | -8/Storage | Hacked Hvy. Flak Cannon | -8/Storage | Hacked Drone Bay | -8/Storage | Hacked Hvy. Plasma Cannon | -8/Storage | Hacked Imp. Integration Mediator | -8/Storage | Hacked Com. Ion Cannon | -7/Factory | Hacked Combat Drone Bay | -7/Data Miner | Free Lgt. Regenerative Plating | -7/Data Miner | Free Exp. Targeting Computer | -7/Data Miner | Free Tactical Coordination Suite | -7/Data Miner | Free Plasma Sword | -7/Data Miner | Free Kinetic Spear | -7/Data Miner | Free Adv. Actuator Array | -6/Factory | Hacked Hvy. Disruptor Cannon | -6/Factory | Hacked Adv. Medium Treads | -6/Factory | Hacked Robot Schematics ------------------ S-27 Virus | -7/Data Miner | Free G-50 Soldier | -7/Data Miner | Free G-67 Veteran | -7/Data Miner | Free L-41 Fighter | -7/Data Miner | Free X-72 Disruptor | -7/Data Miner | Free I-36 Angel | -7/Data Miner | Free I-47 Archangel | -7/Data Miner | Free Fabricated ------------ Maneuvering Thrusters | x1 | -7/Factory Alien Tech Used ----------------- Core Expander Achievements -------------- 40k Club Boltbath Killing Spree Overachiever Rambo Challenges ------------ None RPGLIKE | -11 -10 -10 -9 -9 -9 -8 -8 -8 -7 -7 -7 -7 -6 -6 --------- Run | Scr Mat Min Mat Min Exi Min Mat Sto Fac Low Low Dat Pro Fac Levels Raised 19 | . . 1 5 1 . 2 3 1 5 . . . 1 . XP Earned 32667 | 3000 1450 1125 7488 1475 243 1765 4714 1492 7263 198 306 259 1106 783 XP Spent 30980 | . 2975 500 6850 1850 1100 1100 2900 . 8875 3280 . . 1550 . Upgrades 74 | . 14 1 15 8 1 1 5 . 16 11 . . 2 . Propulsion Slot 3 | . 1 . 1 . 1 . . . . . . . . . Utility Slot 5 | . . 1 1 . . 1 1 . 1 . . . . . Weapon Slot 2 | . 1 . 1 . . . . . . . . . . . Core Integrity 8 | . . . . . . . . . . 8 . . . . Heat Dissipation 1 | . . . . . . . 1 . . . . . . . Energy Generation 3 | . . . 1 . . . 1 . . . . . 1 . Energy Storage 2 | . . . . . . . . . 2 . . . . . Mass Support 3 | . 1 . 1 . . . . . . 1 . . . . Inventory Capacity 3 | . 1 . 1 . . . . . . . . . 1 . Sight Range 1 | . . . . . . . . . 1 . . . . . Sensor Range 15 | . 10 . 5 . . . . . . . . . . . Ranged Accuracy 4 | . . . . . . . . . 4 . . . . . Melee Accuracy 8 | . . . . 2 . . 2 . 2 2 . . . . Hack Attack % 2 | . . . 2 . . . . . . . . . . . Hack Defense % 2 | . . . 2 . . . . . . . . . . . KI Resistance % 4 | . . . . 2 . . . . 2 . . . . . TH Resistance % 4 | . . . . 2 . . . . 2 . . . . . EX Resistance % 4 | . . . . 2 . . . . 2 . . . . . Protomatter Created 5068 | . 136 74 434 12 . 83 671 303 2088 191 389 89 528 70 Integrity Restored 9816 | . 276 219 1069 3 . 117 1081 263 3060 951 537 429 1574 237 Core 8389 | . 276 203 817 3 . 95 902 213 2664 951 220 429 1379 237 Parts 1427 | . . 16 252 . . 22 179 50 396 . 317 . 195 . Protomatter Decayed 1228 | . 44 . 122 . . 41 217 208 446 . 97 53 . . Game ------ Seed BeamLayeredRigger Manual? 0 Play Time 05:42:42 Cumulative 464.7 hours Start 2020.01.15 @ 01:31:16 End 2020.01.16 @ 05:39:03 Sessions 3 Manual Loads 0 Difficulty Rogue Special Mode Winter2019/RPGLIKE Game No. 135 Rogue 135 Adventurer 0 Explorer 0 Win Type - Total 1 Types 1/0/0/0/0/0/0 Lore% 69 Gallery% 76 Achievement% 51 Wizard Run 0 Options --------- ASCII 0 Keyboard 0 Movement Arrows Keybinds 0 Fullscreen 1 Font 12/Smallcaps Map View 83x54 Tactical HUD 1 Map Filters NONE Filters NONE Steam 1 RUN: a9b78bb1-8b13-48fd-953d-7b5106f2f109